bitfinex-derivatives/quotes_ETHF0:USTF0_20250518
["timestamp","ask_amount","ask_price","bid_price","bid_amount"]
[1747531533868,2.76045,2482.6,2482.5,1.2656]
[1747531534165,0.80538,2482.5,2482.4,7.803]
[1747531534365,2.15528,2482.5,2482.4,7.803]
[1747531535668,2.15528,2482.5,2482.4,8.91066863]
[1747531536265,5.36308,2482.5,2482.4,8.91066863]
[1747531537466,5.36308,2482.5,2482.4,7.803]
[1747531538168,5.36308,2482.5,2482.4,8.60842]
[1747531538365,5.36308,2482.5,2482.4,0.80542]
[1747531540072,0.80542,2482.4,2482.3,2.79323]
[1747531542668,4.01319,2482.5,2482.4,0.80542]
[1747531542873,3.2078,2482.8,2482.4,1.2799]
[1747531543173,0.80536,2482.6,2482.5,0.80537]
[1747531544771,0.80538,2482.5,2482.4,5.115249]
[1747531547070,0.80537,2482.6,2482.5,0.80537]
[1747531547373,0.80538,2482.5,2482.4,5.115239]
[1747531547574,2.14648,2482.5,2482.4,4.309849]
[1747531548370,2.14648,2482.5,2482.4,5.115269]
[1747531549274,5.35428,2482.5,2482.4,4.309849]
[1747531550075,0.80542,2482.4,2482.3,1.48684]
[1747531550269,2.08202,2482.4,2482.3,1.48684]
[1747531553272,2.08202,2482.4,2482.3,0.6814]
[1747531553477,0.80551,2482.1,2482.0,1.19980763]
[1747531553679,4.01331,2482.1,2482.0,1.19980763]
[1747531554175,8.34531,2482.1,2482.0,1.19980763]
[1747531554379,0.80561,2481.8,2481.7,2.029]
[1747531555073,0.80561,2481.8,2481.7,2.83464]
[1747531555474,0.80561,2481.8,2481.7,2.029]
[1747531556881,2.07955,2482.0,2481.9,0.80558]
[1747531557781,2.07955,2482.0,2481.9,0.6862]
[1747531557971,5.01932911,2482.1,2481.9,5.1075723]
[1747531558174,5.01932911,2482.1,2482.0,1.2516]
[1747531558378,1.00601911,2482.1,2482.0,2.05715]
[1747531558684,1.00601911,2482.1,2482.0,6.29395065]
[1747531558884,1.00601911,2482.1,2482.0,11.29395065]
[1747531559183,1.00601911,2482.1,2482.0,14.35195065]
[1747531559882,1.00601911,2482.1,2482.0,17.55975065]
[1747531560381,1.00601911,2482.1,2482.0,18.66641428]
[1747531560787,1.00601911,2482.1,2482.0,21.46741428]
[1747531560981,1.81152911,2482.1,2482.0,8.40146428]
[1747531561192,3.13412911,2482.1,2482.0,1.10666363]
[1747531561578,3.13412911,2482.1,2481.9,1.19980763]
[1747531561579,0.80555,2482.0,2481.9,1.19980763]
[1747531561775,2.09845,2482.0,2481.9,1.19980763]
[1747531561983,17.77945,2482.0,2481.9,1.19980763]
[1747531562184,20.83745,2482.0,2481.9,1.19980763]
[1747531563593,25.83745,2482.0,2481.9,1.19980763]
[1747531564292,0.80573,2481.5,2481.3,0.80575]
[1747531564494,4.01353,2481.5,2481.4,0.80574]
[1747531565088,3.2078,2481.5,2481.4,0.80574]
[1747531565391,4.01352,2481.5,2481.3,6.60370144]
[1747531565983,4.01352,2481.5,2481.4,0.80574]
[1747531567194,4.01352,2481.5,2481.3,6.60371144]
[1747531567893,0.80577,2481.4,2481.2,1.48671]
[1747531568093,0.80577,2481.3,2481.2,1.48671]
[1747531568598,0.80576,2481.4,2481.2,1.48671]
[1747531568997,0.80577,2481.3,2481.2,1.48671]
[1747531570095,0.80577,2481.4,2481.3,0.80577]
[1747531570292,0.80577,2481.3,2481.2,1.48669]
[1747531572494,0.80576,2481.4,2481.2,1.48669]
[1747531573285,4.01356,2481.4,2481.2,1.48669]
[1747531575397,0.80577,2481.3,2481.2,1.48669]
[1747531575592,0.80577,2481.3,2481.2,1.48671]
[1747531576397,4.01356,2481.4,2481.3,0.80577]
[1747531578399,3.2078,2481.4,2481.3,0.80577]
[1747531579098,4.01354,2481.4,2481.3,0.80577]
[1747531580596,9.01354,2481.4,2481.3,0.80577]
[1747531580797,0.80597,2480.7,2480.6,1.19980763]
[1747531580990,4.01377,2480.7,2480.6,1.19980763]
[1747531581196,12.07177,2480.7,2480.6,1.19980763]
[1747531581397,0.80603,2480.5,2480.3,2.40636155]
[1747531581901,5.80603,2480.5,2480.3,2.40636155]
[1747531582095,8.86403,2480.5,2480.3,2.40636155]
[1747531584103,8.86403,2480.5,2480.0,7.21908465]
[1747531584301,3.2078,2480.1,2479.7,1.3426]
[1747531584606,4.01406,2479.8,2479.7,1.3426]
[1747531585194,3.2078,2479.8,2479.7,2.14889]
[1747531585396,8.2078,2479.8,2479.4,1.3346793]
[1747531585702,4.01416,2479.5,2479.4,1.3346793]
[1747531586097,0.80639,2479.4,2479.3,1.2781]
[1747531586503,2.16809,2479.4,2479.3,1.2781]
[1747531586703,1.3617,2479.4,2478.9,1.2941]
[1747531586898,3.2078,2479.1,2479.0,1.3238]
[1747531587098,3.2078,2479.4,2479.2,0.80644]
[1747531587308,4.0142,2479.4,2479.3,1.3238]
[1747531587909,3.2078,2479.4,2479.3,1.3238]
[1747531588303,4.01419,2479.4,2479.3,1.3238]
[1747531589805,3.2078,2479.4,2478.7,3.2078]
[1747531590106,11.4328,2479.4,2478.9,5.44828046]
[1747531590307,0.80649,2479.1,2479.0,1.3386]
[1747531591398,0.80659,2478.8,2478.7,3.2078]
[1747531591598,2.01615,2479.2,2478.4,3.2078]
[1747531591599,4.5919,2479.0,2478.4,3.2078]
[1747531591805,0.80666,2478.6,2478.5,1.9834]
[1747531594907,2.01672,2478.5,2477.8,3.2078]
[1747531595115,4.01465,2478.0,2477.9,1.3175]
[1747531596309,2.0172,2477.9,2476.6,3.20848207]
[1747531596511,3.2078,2477.4,2476.8,1.3175]
[1747531596814,0.80711,2477.2,2477.1,1.3175]
[1747531597017,4.01494,2477.1,2476.7,2.12474]
[1747531597217,5.38144,2477.1,2476.9,3.72386155]
[1747531597423,3.2078,2477.4,2476.9,3.72386155]
[1747531597714,0.80709,2477.3,2477.1,1.3175]
[1747531597914,4.01485,2477.4,2477.1,1.3175]
[1747531598318,0.80711,2477.2,2477.1,1.3175]
[1747531598518,0.80714,2477.1,2477.0,1.59852419]
[1747531598713,22.01094,2477.1,2477.0,0.56327419]
[1747531598915,27.01094,2477.1,2477.0,0.56327419]
[1747531599114,27.01094,2477.1,2476.6,3.20848207]
[1747531599115,29.59154621,2477.1,2476.6,2.86963074]
[1747531599314,4.01507,2476.7,2476.6,1.15190074]
[1747531599619,0.80753,2475.9,2475.8,1.3346793]
[1747531599824,3.2078,2476.0,2475.8,1.3346793]
[1747531600116,3.2078,2476.3,2475.8,1.3346793]
[1747531600308,16.741,2476.4,2476.1,0.80745]
[1747531600515,16.741,2476.4,2476.2,1.3834]
[1747531600819,4.4978,2476.6,2476.4,0.80736]
[1747531601018,3.2078,2476.9,2476.6,0.80729]
[1747531601215,3.2078,2476.9,2476.8,0.80724]
[1747531601520,5.26721,2477.2,2476.8,0.80722]
[1747531601822,5.26721,2477.2,2476.9,2.0739]
[1747531602115,4.4601,2477.2,2476.9,1.2667]
[1747531602321,5.26723,2477.2,2476.9,2.07389]
[1747531602522,5.26723,2477.2,2477.0,0.80717]
[1747531602523,4.4601,2477.2,2477.0,0.80717]
[1747531602724,3.2078,2477.2,2477.1,2.07384]
[1747531603213,3.2078,2477.5,2477.4,0.80704]
[1747531604327,3.2078,2477.5,2477.0,3.2078]
[1747531604328,8.592,2477.6,2477.5,0.80701]
[1747531605422,19.9618,2477.8,2477.6,0.80697]
[1747531605611,3.2078,2477.8,2477.1,5.04495198]
[1747531605816,8.58,2477.8,2477.7,0.80694]
[1747531606123,0.80695,2477.7,2477.4,0.80702]
[1747531606317,1.3421,2477.7,2477.4,0.80702]
[1747531606518,2.14905,2477.7,2477.4,0.80702]
[1747531606723,9.9431,2477.7,2477.6,0.80698]
[1747531607224,1.3421,2477.7,2477.6,0.80698]
[1747531607426,18.1081,2477.7,2477.6,0.80698]
[1747531607925,1.3421,2477.7,2477.6,0.80698]
[1747531608115,18.1001,2477.7,2477.6,0.80698]
[1747531608627,3.2078,2477.8,2477.7,0.80694]
[1747531608825,16.754,2477.8,2477.7,0.80694]
[1747531609226,16.75,2477.9,2477.8,0.80691]
[1747531609915,2.14446,2478.0,2477.8,0.80691]
[1747531610123,8.577,2477.9,2477.8,0.80691]
[1747531611429,10.31546,2478.0,2477.9,0.80688]
[1747531611727,18.88246,2478.0,2477.9,0.80688]
[1747531612428,18.88246,2478.0,2477.8,0.80689]
[1747531614521,11.3788,2478.1,2478.0,0.80685]
[1747531614727,3.2078,2478.1,2478.0,0.80685]
[1747531614926,11.7418,2478.1,2478.0,0.80685]
[1747531615122,3.2078,2478.1,2478.0,0.80685]
[1747531618437,10.59266,2478.3,2478.2,0.80678]
[1747531618638,19.10266,2478.3,2478.2,0.80678]
[1747531619634,0.80679,2478.2,2478.1,0.80679]
[1747531621150,20.31282,2478.3,2477.9,0.80687]
[1747531621334,3.2078,2478.0,2477.9,0.80687]
[1747531621638,0.80691,2477.9,2477.8,0.80691]
[1747531621830,2.07661,2477.9,2477.8,0.80691]
[1747531622945,1.2697,2477.9,2477.8,0.80691]
[1747531624241,3.2078,2478.0,2477.9,0.80688]
[1747531624538,20.2038,2478.0,2477.9,0.80688]
[1747531625035,3.2078,2478.0,2477.9,0.80688]
[1747531625242,11.6798,2478.0,2477.9,0.80688]
[1747531625441,3.2078,2478.0,2477.9,0.80688]
[1747531625637,11.6748,2478.0,2477.9,0.80688]
[1747531627635,8.451,2478.1,2478.0,0.80685]
[1747531628035,14.09900648,2478.3,2478.2,0.80678]
[1747531628330,22.55200648,2478.3,2478.2,0.80678]
[1747531628538,23.35875648,2478.3,2478.2,0.80678]
[1747531629740,5.57900648,2478.3,2478.2,0.80678]
[1747531629938,6.38575648,2478.3,2478.2,0.80678]
[1747531630542,3.2078,2478.3,2478.2,0.80678]
[1747531630840,4.01455,2478.3,2478.2,0.80678]
[1747531631535,3.2078,2478.3,2478.2,0.80678]
[1747531631740,4.01455,2478.3,2478.2,0.80678]
[1747531635440,0.80686,2478.0,2477.9,0.80686]
[1747531635738,12.42365,2478.0,2477.9,0.80686]
[1747531636152,13.78665,2478.0,2477.9,0.80686]
[1747531636938,16.20285428,2478.0,2477.9,0.80686]
[1747531637239,0.80694,2477.7,2477.6,1.2959]
[1747531637444,3.2078,2477.7,2477.6,0.80698]
[1747531637941,3.2078,2477.7,2477.6,2.16928]
[1747531638139,4.01474,2477.7,2477.6,2.16928]
[1747531638340,3.2078,2477.7,2477.6,2.16928]
[1747531638540,4.01474,2477.7,2477.6,2.16928]
[1747531638948,4.00393963,2477.7,2477.6,2.16928]
[1747531639147,3.19699963,2477.7,2477.6,2.16928]
[1747531640043,4.49469963,2477.7,2477.6,2.16928]
[1747531640550,0.80707,2477.3,2477.2,1.60317247]
[1747531640743,20.94387,2477.3,2477.2,1.60317247]
[1747531640945,27.15451,2477.3,2476.7,1.3884]
[1747531641246,4.01504,2476.8,2476.7,1.3884]
[1747531642238,5.37884,2476.8,2476.7,1.3884]
[1747531643542,13.78084,2476.8,2476.7,1.3884]
[1747531644748,12.41704,2476.8,2476.7,1.3884]
[1747531645650,11.7288,2477.1,2477.0,0.80714]
[1747531645850,3.2078,2477.1,2477.0,0.80714]
[1747531646244,4.21381911,2477.1,2477.0,0.80714]
[1747531647140,4.21381911,2477.1,2477.0,3.86514]
[1747531650351,4.21381911,2477.1,2477.0,0.80714]
[1747531651159,4.21381911,2477.1,2477.0,3.86514]
[1747531651555,3.2078,2477.1,2477.0,3.86514]
[1747531651853,4.01494,2477.1,2477.0,3.86514]
[1747531652552,3.2078,2477.1,2477.0,3.86514]
[1747531652952,4.01494,2477.1,2477.0,3.86514]
[1747531653254,3.2078,2477.1,2477.0,3.86514]
[1747531653446,4.01494,2477.1,2477.0,3.058]
[1747531654054,4.01494,2477.1,2477.0,3.86517]
[1747531654455,3.2078,2477.1,2477.0,3.86517]
[1747531656051,4.01494,2477.1,2477.0,3.058]
[1747531656447,4.01494,2477.1,2477.0,4.3194]
[1747531657252,4.01494,2477.1,2477.0,2.06857]
[1747531658957,3.2078,2477.1,2477.0,2.06857]
[1747531660157,3.2078,2477.1,2477.0,5.12657]
[1747531660854,3.2078,2477.1,2477.0,14.35020768]
[1747531662164,0.67199167,2477.3,2477.2,0.80711]
[1747531662851,0.67199167,2477.3,2477.2,5.23479333]
[1747531663756,0.67199167,2477.3,2477.2,6.53939333]
[1747531665061,0.67199167,2477.3,2477.2,2.11171]
[1747531665451,4.01486,2477.4,2477.2,2.11171]
[1747531665656,4.01486,2477.4,2477.3,2.07407]
[1747531667368,3.2078,2477.4,2477.3,2.07407]
[1747531667865,4.01484,2477.4,2477.3,2.07407]
[1747531668266,3.2078,2477.4,2477.3,2.07407]
[1747531668670,4.01484,2477.4,2477.3,2.07407]
[1747531669272,5.36814,2477.4,2477.3,2.07407]
[1747531670274,0.8071,2477.3,2477.2,0.80709]
[1747531670573,2.1604,2477.3,2477.2,0.80709]
[1747531671375,1.3533,2477.3,2477.2,0.80709]
[1747531672774,2.16037,2477.3,2477.2,0.80709]
[1747531674372,1.3533,2477.3,2477.2,0.80709]
[1747531674884,3.76014854,2477.3,2477.2,0.80709]
[1747531675280,4.01936942,2478.1,2478.0,0.80685]
[1747531675986,4.01936942,2478.1,2478.0,2.08365]
[1747531676173,4.01936942,2478.1,2478.0,5.14165]
[1747531677681,4.01936942,2478.1,2478.0,4.3348]
[1747531677879,4.01936942,2478.1,2478.0,5.14165]
[1747531678185,3.77149032,2478.2,2478.1,0.80681]
[1747531678385,2.96471032,2478.2,2478.1,0.80681]
[1747531679385,3.77149032,2478.2,2478.1,0.80681]
[1747531679986,3.77149032,2478.2,2478.0,1.9138]
[1747531680386,3.77149032,2478.2,2478.1,0.80681]
[1747531681790,2.11188,2478.2,2478.1,0.80681]
[1747531682486,5.31968,2478.2,2478.1,0.80681]
[1747531683292,0.80685,2478.0,2477.9,8.39]
[1747531683888,0.80685,2478.0,2477.9,9.6826]
[1747531685194,0.80685,2478.0,2477.9,1.2926]
[1747531685888,0.80685,2478.0,2477.5,3.2078]
[1747531685889,15.29113,2478.0,2477.5,3.2078]
[1747531686087,0.80704,2477.4,2477.3,1.9671]
[1747531688888,1.2536,2477.5,2476.6,6.43041513]
[1747531689096,0.80722,2476.9,2476.7,0.6662]
[1747531689295,4.5288,2477.3,2476.7,0.6662]
[1747531689296,3.2078,2477.0,2476.7,7.30259448]
[1747531689496,3.2078,2477.0,2476.8,1.3243]
[1747531689693,3.2078,2477.0,2476.7,4.50483448]
[1747531689891,3.2078,2477.0,2476.6,5.06737513]
[1747531689892,1.321,2476.9,2476.6,1.85957513]
[1747531690196,0.80726,2476.7,2476.6,1.85957513]
[1747531691196,0.80726,2476.7,2476.6,3.18387513]
[1747531691697,0.80726,2476.7,2476.6,1.9795]
[1747531691893,3.2078,2476.7,2476.3,12.33018]
[1747531692094,0.80735,2476.5,2476.3,13.65218]
[1747531692297,1.2998,2476.6,2476.1,0.6552]
[1747531692497,0.80737,2476.4,2476.2,2.12941]
[1747531692699,0.80737,2476.4,2476.3,1.322]
[1747531694299,0.80733,2476.5,2476.3,1.322]
[1747531694501,0.80729,2476.6,2476.4,0.80733]
[1747531694689,0.80729,2476.6,2476.5,1.322]
[1747531695097,4.69487,2476.7,2476.5,2.12931]
[1747531695288,0.80729,2476.6,2476.5,1.322]
[1747531695698,2.18229,2476.6,2476.5,1.322]
[1747531702504,0.80739,2476.4,2476.3,0.80739]
[1747531702693,1.375,2476.6,2476.3,0.80739]
[1747531702898,1.375,2476.6,2476.5,0.80733]
[1747531704506,0.80729,2476.6,2476.5,0.80733]
[1747531704908,2.01825,2476.6,2476.2,0.80742]
[1747531705208,0.8074,2476.3,2476.2,0.80741]
[1747531705394,0.80738,2476.4,2476.1,1.2579]
[1747531705596,0.80738,2476.4,2476.3,0.80739]
[1747531705794,2.15015,2476.5,2476.4,0.80736]
[1747531706207,0.80737,2476.4,2476.3,0.80737]
[1747531706807,0.8074,2476.3,2476.2,0.8074]
[1747531707009,0.80739,2476.3,2476.2,0.8074]
[1747531708808,1.3428,2476.5,2476.4,0.80736]
[1747531709005,1.3428,2476.5,2476.1,3.058]
[1747531709202,0.80737,2476.4,2476.3,0.80738]
[1747531710009,0.80739,2476.3,2476.2,0.80742]
[1747531710311,4.01518,2476.4,2476.1,4.25046379]
[1747531710612,0.80739,2476.3,2476.2,0.80739]
[1747531710908,4.01518,2476.4,2476.3,0.80739]
[1747531711408,4.01518,2476.4,2476.1,7.30846379]
[1747531711409,0.80742,2476.3,2476.2,0.80741]
[1747531711607,0.80729,2476.6,2476.5,0.80732]
[1747531711807,0.80733,2476.5,2476.4,0.80734]
[1747531712009,0.80736,2476.4,2476.3,5.34420653]
[1747531712206,0.80735,2476.5,2476.4,0.80735]
[1747531712711,0.80733,2476.5,2476.4,0.80734]
[1747531713211,0.80733,2476.5,2476.4,3.86534]
[1747531713511,2.14582,2476.6,2476.4,3.86534]
[1747531713699,1.3385,2476.6,2476.4,3.86534]
[1747531713906,0.80733,2476.5,2476.4,3.86534]
[1747531714107,3.2078,2476.7,2476.4,3.86534]
[1747531714300,0.80731,2476.6,2476.5,0.80732]
[1747531714510,0.80733,2476.5,2476.4,3.86533]
[1747531716114,0.80732,2476.6,2476.5,0.80732]
[1747531716915,0.80729,2476.6,2476.5,0.80732]
[1747531719417,3.21321359,2476.6,2476.5,0.80732]
[1747531720018,2.40592359,2476.6,2476.5,0.80732]
[1747531720218,2.40592359,2476.6,2476.5,8.2953793]
[1747531721120,2.40592359,2476.6,2476.5,3.86532]
[1747531723019,6.42100359,2476.7,2476.6,0.80729]
[1747531723620,6.42100359,2476.7,2476.6,2.10779]
[1747531724421,5.61372359,2476.7,2476.6,2.10779]
[1747531724922,7.74038359,2476.7,2476.6,2.10779]
[1747531725720,7.74038359,2476.7,2476.6,0.80729]
[1747531726117,6.93312359,2476.7,2476.4,1.3675]
[1747531726321,0.80733,2476.6,2476.5,0.80731]
[1747531726521,2.05943,2476.6,2476.5,0.80731]
[1747531727526,1.2521,2476.6,2476.5,0.80731]
[1747531727825,2.05939,2476.6,2476.5,0.80731]
[1747531729227,1.2521,2476.6,2476.5,0.80731]
[1747531729431,1.2521,2476.6,2476.5,2.18891]
[1747531730125,2.05939,2476.6,2476.5,2.18891]
[1747531730327,1.2521,2476.6,2476.5,2.18891]
[1747531732230,2.05939,2476.6,2476.5,2.18891]
[1747531732432,2.05939,2476.6,2476.5,0.80731]
[1747531732831,1.2521,2476.6,2476.5,0.80731]
[1747531733029,1.2521,2476.6,2476.5,2.15421]
[1747531733732,5.61372359,2476.7,2476.6,0.80729]
[1747531733933,5.61372359,2476.7,2476.6,2.15419]
[1747531736143,4.01506,2476.7,2476.6,2.15419]
[1747531736643,5.02657999,2476.7,2476.6,2.15419]
[1747531737243,5.02657999,2476.7,2476.6,1.3469]
[1747531737444,6.35727999,2476.7,2476.6,1.3469]
[1747531737657,6.35727999,2476.7,2476.6,2.15419]
[1747531738044,6.35727999,2476.7,2476.6,1.3469]
[1747531738247,0.80729,2476.6,2476.5,0.80731]
[1747531738549,2.06099,2476.6,2476.5,0.80731]
[1747531739256,2.06099,2476.6,2476.5,2.15921]
[1747531743351,4.46691359,2476.6,2476.5,2.15921]
[1747531744954,3.65962359,2476.6,2476.5,2.15921]
[1747531745157,4.46691359,2476.6,2476.5,2.15921]
[1747531746163,3.65962359,2476.6,2476.5,2.15921]
[1747531746460,2.40592359,2476.6,2476.5,2.15921]
[1747531746962,4.22473358,2476.6,2476.5,2.15921]
[1747531748759,3.41744358,2476.6,2476.5,2.15921]
[1747531750260,4.22473358,2476.6,2476.5,2.15921]
[1747531750857,3.21321359,2476.6,2476.5,2.15921]
[1747531754667,2.40592359,2476.6,2476.5,2.15921]
[1747531755364,3.41744358,2476.6,2476.5,2.15921]
[1747531755567,3.41744358,2476.6,2476.5,6.8343345]
[1747531755964,3.21470468,2476.8,2476.7,0.80726]
[1747531756159,3.21470468,2476.8,2476.7,17.05426]
[1747531756359,3.21470468,2476.8,2476.7,26.57616835]
[1747531756667,1.34129154,2476.9,2476.8,0.80723]
[1747531756966,1.34129154,2476.9,2476.8,6.61373835]
[1747531757166,1.34129154,2476.9,2476.8,9.67173835]
[1747531758165,1.34129154,2476.9,2476.8,10.76092899]
[1747531759269,2.14849154,2476.9,2476.8,5.43179064]
[1747531759471,4.17039154,2476.9,2476.8,4.3426]
[1747531759668,4.17039154,2476.9,2476.8,3.058]
[1747531760168,0.80723,2476.8,2476.7,8.156]
[1747531760368,2.18643,2476.8,2476.7,8.156]
[1747531760869,2.18643,2476.8,2476.7,8.96326]
[1747531761670,1.3792,2476.8,2476.7,8.96326]
[1747531762072,1.98399154,2476.9,2476.8,0.80723]
[1747531762271,2.79119154,2476.9,2476.8,2.11103]
[1747531762672,1.4499,2476.9,2476.8,2.11103]
[1747531762870,0.6427,2476.9,2476.8,2.11103]
[1747531763467,1.3405,2477.0,2476.8,2.11103]
[1747531763768,3.898,2477.1,2476.9,2.111]
[1747531764070,0.80716,2477.0,2476.9,1.3038]
[1747531764371,0.8072,2476.9,2476.7,8.96324]
[1747531764772,0.8072,2476.9,2476.8,0.80723]
[1747531765173,0.8072,2476.9,2476.7,8.156]
[1747531765174,0.80723,2476.8,2476.7,8.156]
[1747531765374,0.80723,2476.8,2476.6,4.3618]
[1747531765375,0.80726,2476.7,2476.6,3.058]
[1747531765575,4.65476,2476.7,2476.6,3.058]
[1747531766173,0.80729,2476.6,2476.5,8.156]
[1747531766369,2.83669,2476.6,2476.5,8.156]
[1747531766568,2.83669,2476.6,2476.5,8.96333]
[1747531767773,2.83669,2476.6,2476.5,10.25433]
[1747531768174,2.83669,2476.6,2476.5,2.09833]
[1747531768763,2.0294,2476.6,2476.5,2.09833]
[1747531772773,5.35627154,2477.0,2476.9,0.8072]
[1747531772975,7.37607154,2477.0,2476.9,0.8072]
[1747531773179,2.78875154,2477.0,2476.9,0.8072]
[1747531774779,5.99655154,2477.0,2476.9,0.8072]
[1747531774981,5.99655154,2477.0,2476.9,2.0913]
[1747531775684,7.27475154,2477.0,2476.9,1.2841]
[1747531776787,5.93346,2477.0,2476.9,1.2841]
[1747531781784,5.93346,2477.0,2476.9,2.09129]
[1747531783283,3.2078,2477.0,2476.9,2.09129]
[1747531783484,3.2078,2477.0,2476.9,2.76059]
[1747531784182,3.2078,2477.0,2476.9,5.81859]
[1747531785190,1.34129154,2477.1,2477.0,0.80716]
[1747531785389,1.34129154,2477.1,2477.0,2.14846]
[1747531786090,1.34129154,2477.1,2477.0,5.20646]
[1747531786490,2.14840154,2477.2,2477.1,0.80713]
[1747531786691,2.14840154,2477.2,2477.1,2.16773]
[1747531787384,2.14840154,2477.2,2476.9,0.6693]
[1747531787385,1.34129154,2477.2,2476.9,0.80717]
[1747531787588,0.8072,2476.9,2476.8,10.9225]
[1747531788088,0.80719,2477.0,2476.9,0.80718]
[1747531788891,0.80719,2477.0,2476.9,2.16778]
[1747531789793,0.80719,2477.0,2476.9,1.3606]
[1747531789794,4.01499,2477.0,2476.9,1.3606]
[1747531789988,3.858,2477.0,2476.7,0.80724]
[1747531790194,0.80722,2476.9,2476.8,0.80723]
[1747531790394,2.81892,2476.9,2476.8,0.80723]
[1747531791995,2.0117,2476.9,2476.8,0.80723]
[1747531793290,2.8189,2476.9,2476.8,0.80723]
[1747531794816,1.4827,2476.9,2476.8,0.80723]
[1747531799912,0.80725,2476.8,2476.7,0.80724]
[1747531800111,2.86251,2476.9,2476.8,0.80723]
[1747531800410,0.80726,2476.8,2476.7,0.80724]
[1747531800706,2.18706,2476.8,2476.7,0.80724]
[1747531800913,2.18706,2476.8,2476.4,1.20437513]
[1747531800914,0.80733,2476.5,2476.4,1.20437513]
[1747531801414,5.80733,2476.5,2476.4,1.20437513]
[1747531801609,13.83433,2476.5,2476.4,1.20437513]
[1747531802009,15.17753,2476.5,2476.4,1.20437513]
[1747531803617,0.80752,2475.9,2475.5,4.63465933]
[1747531803811,0.80752,2475.9,2475.7,1.2591]
[1747531804010,0.80752,2475.9,2475.8,0.80755]
[1747531804713,3.2078,2476.1,2475.7,1.2591]
[1747531804919,0.80741,2476.3,2476.2,0.80742]
[1747531805221,3.2078,2476.4,2476.3,0.80739]
[1747531806126,3.2078,2476.4,2476.3,11.90639]
[1747531806421,3.2078,2476.4,2476.3,16.16889131]
[1747531806722,3.2078,2476.4,2476.3,21.16889131]
[1747531807218,3.21470468,2476.5,2476.4,0.80736]
[1747531807419,3.21470468,2476.5,2476.4,10.15846]
[1747531807610,4.86741032,2476.7,2476.6,0.80729]
[1747531808318,4.86741032,2476.7,2476.6,2.11939]
[1747531809220,1.65961032,2476.7,2476.6,9.58557157]
[1747531809518,3.21470468,2477.1,2477.0,0.80716]
[1747531810214,3.21470468,2477.1,2477.0,5.86296]
[1747531811122,3.21470468,2477.1,2477.0,2.80496]
[1747531811518,0.80711,2477.2,2477.0,2.80496]
[1747531811519,0.80711,2477.2,2477.1,0.80713]
[1747531811715,2.07451,2477.2,2477.1,0.80713]
[1747531812422,4.4752,2477.2,2476.9,8.82618]
[1747531812615,0.6625,2477.1,2476.9,8.82618]
[1747531812815,1.2674,2477.0,2476.9,8.82618]
[1747531813210,1.2674,2477.0,2476.9,10.16648]
[1747531813415,2.07456,2477.0,2476.9,10.16648]
[1747531814521,1.2674,2477.0,2476.9,10.16648]
[1747531816124,1.46965,2477.1,2477.0,0.80716]
[1747531816323,1.46965,2477.1,2477.0,2.06446]
[1747531816525,2.82245,2477.1,2477.0,2.06446]
[1747531817829,2.0153,2477.1,2477.0,2.06446]
[1747531818216,2.82243,2477.1,2477.0,2.06446]
[1747531818423,2.0153,2477.1,2477.0,2.06446]
[1747531818629,2.82243,2477.1,2477.0,2.06446]
[1747531818829,2.0153,2477.1,2477.0,2.06446]
[1747531820432,2.82243,2477.1,2477.0,2.06446]
[1747531820631,2.0153,2477.1,2477.0,2.06446]
[1747531822232,2.82243,2477.1,2477.0,2.06446]
[1747531823931,1.00997874,2477.2,2477.1,0.80713]
[1747531824335,1.00997874,2477.2,2477.1,1.46033]
[1747531825941,0.80713,2477.1,2477.0,3.058]
[1747531826137,5.96333,2477.1,2477.0,3.058]
[1747531826339,0.8072,2476.9,2476.8,1.3108]
[1747531826942,2.1332,2476.9,2476.8,1.3108]
[1747531827141,1.326,2476.9,2476.3,13.0598]
[1747531827445,0.80733,2476.5,2476.4,1.2661]
[1747531827739,0.80733,2476.5,2476.4,2.07346]
[1747531828137,1.9659,2476.7,2476.4,2.07346]
[1747531828138,1.9659,2476.7,2476.4,4.3241]
[1747531828433,2.77319,2476.7,2476.5,0.80731]
[1747531828640,2.77319,2476.7,2476.6,1.2661]
[1747531829437,2.77319,2476.7,2476.6,2.07339]
[1747531829943,2.77319,2476.7,2476.6,1.2661]
[1747531830240,3.2078,2476.8,2476.6,1.2661]
[1747531830440,3.2078,2477.1,2477.0,0.80716]
[1747531831331,3.2078,2477.1,2477.0,3.86516]
[1747531831935,4.01493,2477.1,2477.0,3.86516]
[1747531833746,3.2078,2477.1,2477.0,3.86516]
[1747531833947,4.55463369,2477.1,2477.0,3.86516]
[1747531835445,1.34683369,2477.1,2477.0,3.86516]
[1747531835649,2.15396369,2477.1,2477.0,3.86516]
[1747531836945,2.15396369,2477.1,2477.0,3.058]
[1747531838046,5.36176369,2477.1,2477.0,3.058]
[1747531838244,4.55463369,2477.1,2476.8,1.2599]
[1747531838453,0.80719,2476.9,2476.8,1.2599]
[1747531839247,2.13589,2476.9,2476.8,1.2599]
[1747531839641,2.13589,2476.9,2476.8,2.06713]
[1747531840638,2.13589,2476.9,2476.8,1.2599]
[1747531841048,2.13589,2476.9,2476.8,2.06713]
[1747531841249,2.13589,2476.9,2476.8,1.2599]
[1747531841447,0.80723,2476.8,2476.7,1.47194]
[1747531841649,2.79883,2476.8,2476.7,0.80724]
[1747531841946,0.80726,2476.7,2476.6,1.2707]
[1747531842146,2.16326,2476.7,2476.6,1.2707]
[1747531842953,0.80733,2476.5,2476.4,0.6413]
[1747531843448,4.01513,2476.5,2476.4,0.6413]
[1747531843841,5.37113,2476.5,2476.4,1.912]